fUSD/lending_fUSD_20240520
["ID","MTS","AMOUNT","RATE_DAILY","PERIOD"]
[327586019,1716245481882,-513.36,0.00038904,6]
[327586020,1716245481892,-1026.69,0.00038904,6]
[327586021,1716245481901,-2532.84,0.00038904,6]
[327586022,1716245481910,-500.0,0.00038904,6]
[327586023,1716245481922,-500.0,0.00038904,6]
[327586024,1716245481931,-2101.19,0.00038904,6]
[327586025,1716245481940,-592.89,0.00038904,6]
[327586026,1716245481949,-570.68,0.00038904,6]
[327586027,1716245481961,-1055.63,0.00038904,6]
[327586028,1716245481970,-620.38,0.00038904,6]
[327586029,1716245481980,-3413.59,0.00038904,6]
[327586030,1716245481989,-500.0,0.00038904,6]
[327586031,1716245481998,-500.0,0.00038904,6]
[327586032,1716245482009,-504.06,0.00038904,6]
[327586033,1716245482019,-740.56,0.00038904,6]
[327586034,1716245482029,-1942.18,0.00038904,6]
[327586035,1716245482040,-1251.93,0.00038904,6]
[327586036,1716245482050,-30429.05,0.00038904,6]
[327586037,1716245482059,-500.0,0.00038904,2]
[327586038,1716245482069,-630.83,0.00038904,6]
[327586039,1716245482078,-500.0,0.00038904,6]
[327586040,1716245482088,-1844.18,0.00038904,6]
[327586041,1716245482097,-815.91,0.00038904,6]
[327586042,1716245482107,-500.0,0.00038904,6]
[327586043,1716245482117,-748.28,0.00038904,6]
[327586044,1716245482126,-500.0,0.00038904,6]
[327586045,1716245482135,-500.0,0.00038904,6]
[327586046,1716245482145,-3772.16,0.00038904,6]
[327586047,1716245482154,-500.0,0.00038904,6]
[327586048,1716245482164,-500.0,0.00038904,6]
[327586049,1716245482173,-500.0,0.00038904,6]
[327586050,1716245482182,-901.56,0.00038904,6]
[327586051,1716245482192,-2815.44,0.00038904,6]
[327586052,1716245482201,-804.6,0.00038904,6]
[327586053,1716245482211,-500.0,0.00038904,6]
[327586054,1716245482220,-500.0,0.00038904,6]
[327586055,1716245482230,-13987.25,0.00038904,6]
[327586056,1716245482239,-997.22,0.00038904,6]
[327586057,1716245482248,-1053.44,0.00038904,6]
[327586058,1716245482260,-699.25,0.00038904,6]
[327586059,1716245482270,-751.67,0.00038904,6]
[327586060,1716245482280,-500.0,0.00038904,6]
[327586061,1716245482289,-500.0,0.00038904,6]
[327586062,1716245482299,-1918.99,0.00038904,6]
[327586063,1716245482308,-4140.85,0.00038904,6]
[327586064,1716245482318,-500.0,0.00038904,6]
[327586065,1716245482327,-500.0,0.00038904,6]
[327586066,1716245482336,-3236.59,0.00038904,6]
[327586067,1716245482346,-500.0,0.00038904,6]
[327586068,1716245482355,-2582.59,0.00038904,6]
[327586069,1716245482365,-500.0,0.00038904,6]
[327586070,1716245482374,-613.44,0.00038904,6]
[327586071,1716245482383,-2877.6,0.00038904,6]
[327586072,1716245482392,-500.0,0.00038904,6]
[327586073,1716245482402,-595.4,0.00038904,6]
[327586074,1716245482412,-1530.58,0.00038904,6]
[327586075,1716245482422,-3378.14,0.00038904,6]
[327586076,1716245482431,-500.0,0.00038904,6]
[327586077,1716245482440,-500.0,0.00038904,6]
[327586078,1716245482450,-938.82,0.00038904,6]
[327586079,1716245482459,-500.0,0.00038904,6]
[327586080,1716245482468,-500.0,0.00038904,6]
[327586081,1716245482477,-500.0,0.00038904,6]
[327586082,1716245482487,-1615.98,0.00038904,6]
[327586083,1716245482496,-500.0,0.00038904,6]
[327586084,1716245482506,-500.0,0.00038904,6]
[327586085,1716245482515,-8193.08,0.00038904,6]
[327586086,1716245482524,-500.0,0.00038904,6]
[327586087,1716245482533,-19028.04,0.00038904,6]
[327586088,1716245482543,-500.67,0.00038904,6]
[327586089,1716245482552,-893.96,0.00038904,6]
[327586090,1716245482562,-500.0,0.00038904,6]
[327586091,1716245482571,-575.4,0.00038904,6]
[327586092,1716245482580,-500.0,0.00038904,6]
[327586093,1716245482590,-2645.07,0.00038904,6]
[327586094,1716245482599,-500.0,0.00038904,6]
[327586095,1716245482608,-2985.62,0.00038904,6]
[327586096,1716245482617,-14091.29,0.00038904,6]
[327586097,1716245482627,-500.0,0.00038904,6]
[327586098,1716245482636,-3314.39,0.00038904,6]
[327586099,1716245482646,-500.0,0.00038904,6]
[327586100,1716245482655,-3347.33,0.00038904,6]
[327586101,1716245482663,-722.13,0.00038904,6]
[327586102,1716245482672,-500.0,0.00038904,6]
[327586103,1716245482681,-740.24,0.00038904,6]
[327586104,1716245482691,-500.0,0.00038904,6]
[327586105,1716245482700,-500.0,0.00038904,6]
[327586106,1716245482708,-500.0,0.00038904,6]
[327586107,1716245482717,-1982.85,0.00038904,6]
[327586108,1716245482727,-1682.03,0.00038904,6]
[327586109,1716245482736,-3691.86,0.00038904,6]
[327586110,1716245482745,-421.38948977,0.00038904,6]
[327586111,1716245482754,-4880.13,0.00038904,6]
[327586112,1716245482764,-525.04,0.00038904,6]
[327586113,1716245482773,-500.0,0.00038904,6]
[327586114,1716245482782,-3316.89,0.00038904,6]
[327586115,1716245482791,-5016.87,0.00038904,6]
[327586116,1716245482801,-4678.75,0.00038904,6]
[327586117,1716245482810,-550.28,0.00038904,6]
[327586118,1716245482820,-500.0,0.00038904,6]
[327586119,1716245482829,-547.81863709,0.00038904,6]
[327586120,1716245482838,-538.37,0.00038904,6]
[327586121,1716245482847,-500.0,0.00038904,6]
[327586122,1716245482856,-500.0,0.00038904,6]
[327586123,1716245482866,-500.0,0.00038904,6]
[327586124,1716245482877,-500.0,0.00038904,6]
[327586125,1716245482890,-562.42345306,0.00038904,6]
[327586126,1716245482899,-1691.03,0.00038904,6]
[327586127,1716245482908,-500.0,0.00038904,6]
[327586128,1716245482918,-532.03,0.00038904,6]
[327586129,1716245482927,-500.0,0.00038904,6]
[327586130,1716245482936,-500.0,0.00038904,6]
[327586131,1716245482946,-2062.0,0.00038904,6]
[327586132,1716245482957,-164.98,0.00038904,6]
[327586133,1716245482968,-1235.65,0.00038904,6]
[327586134,1716245482978,-2558.3,0.00038904,6]
[327586135,1716245482987,-2062.15,0.00038904,6]
[327586136,1716245482996,-579.72,0.00038904,6]
[327586137,1716245483008,-8337.52,0.00038904,6]
[327586138,1716245483018,-2315.84,0.00038904,6]
[327586139,1716245483028,-500.0,0.00038904,6]
[327586140,1716245483037,-973.13,0.00038904,6]
[327586141,1716245483046,-500.0,0.00038904,6]
[327586142,1716245483055,-500.0,0.00038904,6]
[327586143,1716245483065,-500.0,0.00038904,6]
[327586144,1716245483075,-500.0,0.00038904,6]
[327586145,1716245483085,-1471.56,0.00038904,6]
[327586146,1716245483094,-1132.99,0.00038904,6]
[327586147,1716245483103,-500.0,0.00038904,6]
[327586148,1716245483112,-854.29,0.00038904,6]
[327586149,1716245483122,-2469.6,0.00038904,6]
[327586150,1716245483131,-1951.27,0.00038904,6]
[327586151,1716245483141,-674.42,0.00038904,6]
[327586152,1716245483150,-689.39,0.00038904,6]
[327586153,1716245483160,-1671.12,0.00038904,6]
[327586154,1716245483169,-500.0,0.00038904,6]
[327586155,1716245483179,-3317.8,0.00038904,6]
[327586156,1716245483188,-563.76520091,0.00038904,6]
[327586157,1716245483198,-500.0,0.00038904,6]
[327586158,1716245483207,-500.0,0.00038904,6]
[327586159,1716245483217,-663.65,0.00038904,6]
[327586160,1716245483227,-500.0,0.00038904,6]
[327586161,1716245483236,-2201.17,0.00038904,6]
[327586162,1716245483245,-2634.35,0.00038904,6]
[327586163,1716245483254,-500.0,0.00038904,6]
[327586164,1716245483265,-559.36790421,0.00038904,6]
[327586165,1716245483274,-500.0,0.00038904,6]
[327586166,1716245483284,-500.0,0.00038904,6]
[327586167,1716245483294,-5000.0,0.00038904,6]
[327586168,1716245483303,-1912.42,0.00038904,6]
[327586169,1716245483312,-500.0,0.00038904,6]
[327586170,1716245483322,-988.93,0.00038904,6]
[327586171,1716245483332,-511.73,0.00038904,6]
[327586172,1716245483342,-665.78,0.00038904,6]
[327586173,1716245483351,-15236.32,0.00038904,6]
[327586174,1716245483361,-2813.24,0.00038904,6]
[327586175,1716245483371,-4733.21,0.00038904,6]
[327586176,1716245483380,-609.27,0.00038904,6]
[327586177,1716245483389,-500.0,0.00038904,6]
[327586178,1716245483399,-832.91,0.00038904,6]
[327586179,1716245483408,-717.45,0.00038904,6]
[327586180,1716245483418,-500.0,0.00038904,6]
[327586181,1716245483428,-582.55224468,0.00038904,6]
[327586182,1716245483438,-2795.48,0.00038904,6]
[327586183,1716245483448,-781.81,0.00038904,6]
[327586184,1716245483459,-2440.61,0.00038904,6]
[327586185,1716245483468,-995.68,0.00038904,6]
[327586186,1716245483478,-1005.43,0.00038904,6]
[327586187,1716245483488,-656.76,0.00038904,6]
[327586188,1716245483497,-540.4386496,0.00038904,6]
[327586189,1716245483508,-1373.96,0.00038904,6]
[327586190,1716245483518,-11657.41,0.00038904,6]
[327586191,1716245483528,-2170.99,0.00038904,6]
[327586192,1716245483538,-766.1,0.00038904,6]
[327586193,1716245483548,-1454.32,0.00038904,6]
[327586194,1716245483557,-3882.68,0.00038904,6]
[327586195,1716245483567,-1168.91,0.00038904,6]
[327586196,1716245483576,-745.77,0.00038904,6]
[327586197,1716245483586,-500.0,0.00038904,6]
[327586198,1716245483596,-500.0,0.00038904,6]
[327586199,1716245483605,-976.25,0.00038904,6]
[327586200,1716245483615,-2055.27,0.00038904,6]
[327586201,1716245483625,-508.19,0.00038904,6]
[327586202,1716245483635,-1395.0,0.00038904,6]
[327586203,1716245483644,-534.69535486,0.00038904,2]
[327586204,1716245483655,-2845.6,0.00038904,6]
[327586205,1716245483664,-540.29161783,0.00038904,6]
[327586206,1716245483674,-500.0,0.00038904,6]
[327586207,1716245483684,-3580.22,0.00038904,6]
[327586208,1716245483693,-541.47,0.00038904,6]
[327586209,1716245483703,-500.0,0.00038904,6]
[327586210,1716245483713,-1044.04,0.00038904,6]
[327586211,1716245483723,-500.0,0.00038904,6]
[327586212,1716245483735,-500.0,0.00038904,6]
[327586213,1716245483745,-500.0,0.00038904,6]
[327586214,1716245483756,-3464.86,0.00038904,6]
[327586215,1716245483768,-563.43,0.00038904,6]
[327586216,1716245483778,-935.41,0.00038904,6]
[327586217,1716245483787,-500.0,0.00038904,6]
[327586218,1716245483796,-776.51,0.00038904,6]
[327586219,1716245483806,-1690.32,0.00038904,6]
[327586220,1716245483815,-795.99,0.00038904,6]
[327586221,1716245483825,-7097.57,0.00038904,6]
[327586222,1716245483835,-3710.87,0.00038904,6]
[327586223,1716245483844,-500.0,0.00038904,6]
[327586224,1716245483854,-2092.89,0.00038904,6]
[327586225,1716245483864,-500.0,0.00038904,6]
[327586226,1716245483878,-1088.81,0.00038904,6]
[327586227,1716245483888,-781.29,0.00038904,6]
[327586228,1716245483898,-500.0,0.00038904,6]
[327586229,1716245483907,-694.72,0.00038904,6]
[327586230,1716245483919,-1685.88,0.00038904,6]
[327586231,1716245483928,-500.0,0.00038904,6]
[327586232,1716245483938,-798.13,0.00038904,6]
[327586233,1716245483947,-500.0,0.00038904,6]
[327586234,1716245483958,-1608.69,0.00038904,6]
[327586235,1716245483968,-708.39,0.00038904,6]
[327586236,1716245483978,-500.0,0.00038904,6]
[327586237,1716245483988,-9665.93,0.00038904,6]
[327586238,1716245483997,-544.69,0.00038904,6]
[327586239,1716245484007,-2718.3,0.00038904,6]
[327586240,1716245484017,-1873.61,0.00038904,6]
[327586241,1716245484026,-8197.4,0.00038904,6]
[327586242,1716245484036,-562.5,0.00038904,6]
[327586243,1716245484046,-553.88,0.00038904,6]
[327586244,1716245484056,-620.5,0.00038904,6]
[327586245,1716245484066,-538.40964803,0.00038904,6]
[327586246,1716245484076,-500.0,0.00038904,6]
[327586247,1716245484086,-801.95,0.00038904,6]
[327586248,1716245484096,-724.18,0.00038904,6]
[327586249,1716245484106,-500.0,0.00038904,6]
[327586250,1716245484116,-500.0,0.00038904,6]
[327586251,1716245484126,-500.0,0.00038904,6]
[327586252,1716245484135,-2543.81,0.00038904,6]
[327586253,1716245484145,-1033.4,0.00038904,6]
[327586254,1716245484155,-500.0,0.00038904,6]
[327586255,1716245484165,-2378.19,0.00038904,6]
[327586256,1716245484175,-4055.39,0.00038904,6]
[327586257,1716245484184,-500.0,0.00038904,6]
[327586258,1716245484194,-500.0,0.00038904,6]
[327586259,1716245484204,-753.12,0.00038904,6]
[327586260,1716245484215,-500.0,0.00038904,6]
[327586261,1716245484226,-512.27,0.00038904,6]
[327586262,1716245484237,-500.0,0.00038904,6]
[327586263,1716245484247,-500.0,0.00038904,6]
[327586264,1716245484257,-500.0,0.00038904,6]
[327586265,1716245484269,-500.0,0.00038904,6]
[327586266,1716245484279,-1731.01,0.00038904,6]
[327586267,1716245484289,-3283.48,0.00038904,6]
[327586268,1716245484299,-1164.4,0.00038904,6]
[327586269,1716245484308,-793.07,0.00038904,6]
[327586270,1716245484318,-1438.11,0.00038904,6]
[327586271,1716245484328,-500.0,0.00038904,6]
[327586272,1716245484339,-4621.16,0.00038904,6]
[327586273,1716245484349,-500.0,0.00038904,6]
[327586274,1716245484359,-500.0,0.00038904,6]
[327586275,1716245484369,-956.45,0.00038904,6]
[327586276,1716245484378,-23727.62,0.00038904,6]
[327586277,1716245484388,-4348.62,0.00038904,6]
[327586278,1716245484398,-500.0,0.00038904,6]
[327586279,1716245484408,-1289.66,0.00038904,6]
[327586280,1716245484417,-529.73992973,0.00038904,6]
[327586281,1716245484427,-1604.13,0.00038904,6]
[327586282,1716245484436,-500.0,0.00038904,6]
[327586283,1716245484446,-500.0,0.00038904,6]
[327586284,1716245484456,-500.0,0.00038904,6]
[327586285,1716245484465,-4068.0,0.00038904,6]
[327586286,1716245484475,-500.0,0.00038904,6]
[327586287,1716245484485,-826.66,0.00038904,6]
[327586288,1716245484495,-1475.24,0.00038904,6]
[327586289,1716245484504,-500.0,0.00038904,6]
[327586290,1716245484515,-635.01,0.00038904,6]
[327586291,1716245484524,-500.0,0.00038904,6]
[327586292,1716245484534,-506.13,0.00038904,6]
[327586293,1716245484544,-500.0,0.00038904,6]
[327586294,1716245484553,-987.32,0.00038904,6]
[327586295,1716245484563,-1648.74,0.00038904,6]
[327586296,1716245484573,-1446.75,0.00038904,6]
[327586297,1716245484583,-2956.33,0.00038904,6]
[327586298,1716245484592,-3342.78,0.00038904,6]
[327586299,1716245484602,-10264.95,0.00038904,6]
[327586300,1716245484612,-500.0,0.00038904,6]
[327586301,1716245484622,-500.0,0.00038904,6]
[327586302,1716245484632,-1242.39,0.00038904,6]
[327586303,1716245484642,-500.0,0.00038904,6]
[327586304,1716245484651,-500.0,0.00038904,6]
[327586305,1716245484661,-2571.94,0.00038904,6]
[327586306,1716245484671,-500.0,0.00038904,6]
[327586307,1716245484680,-1108.44,0.00038904,6]
[327586308,1716245484690,-539.69375955,0.00038904,6]
[327586309,1716245484699,-559.52,0.00038904,6]
[327586310,1716245484709,-500.0,0.00038904,6]
[327586311,1716245484719,-500.0,0.00038904,6]
[327586312,1716245484729,-556.90825795,0.00038904,6]
[327586313,1716245484739,-2449.3,0.00038904,6]
[327586314,1716245484749,-500.0,0.00038904,6]
[327586315,1716245484759,-3546.39,0.00038904,6]
[327586316,1716245484769,-500.0,0.00038904,6]
[327586317,1716245484779,-500.0,0.00038904,6]
[327586318,1716245484789,-554.78775883,0.00038904,6]
[327586319,1716245484799,-3624.52,0.00038904,6]
[327586320,1716245484810,-500.0,0.00038904,6]
[327586321,1716245484820,-500.0,0.00038904,6]
[327586322,1716245484830,-4260.57,0.00038904,6]
[327586323,1716245484839,-500.0,0.00038904,6]
[327586324,1716245484849,-500.0,0.00038904,6]
[327586325,1716245484859,-500.0,0.00038904,6]
[327586326,1716245484870,-500.0,0.00038904,6]
[327586327,1716245484881,-500.0,0.00038904,6]
[327586328,1716245484894,-500.0,0.00038904,6]
[327586329,1716245484904,-500.0,0.00038904,6]
[327586330,1716245484914,-500.0,0.00038904,6]
[327586331,1716245484926,-967.27,0.00038904,6]
[327586332,1716245484936,-470.48509188,0.00038904,6]
[327586333,1716245484946,-500.0,0.00038904,6]
[327586334,1716245484956,-500.0,0.00038904,6]
[327586335,1716245484967,-1904.42,0.00038904,6]
[327586336,1716245484976,-500.0,0.00038904,6]
[327586337,1716245484986,-3444.31,0.00038904,6]
[327586338,1716245484996,-1926.38,0.00038904,6]
[327586339,1716245485007,-500.0,0.00038904,6]
[327586340,1716245485017,-500.0,0.00038904,6]
[327586341,1716245485027,-2532.03,0.00038904,6]
[327586342,1716245485037,-1475.47,0.00038904,6]
[327586343,1716245485048,-6190.15,0.00038904,6]
[327586344,1716245485058,-500.0,0.00038904,6]
[327586345,1716245485069,-500.0,0.00038904,6]
[327586346,1716245485079,-500.0,0.00038904,6]
[327586347,1716245485089,-532.62,0.00038904,6]
[327586348,1716245485100,-500.0,0.00038904,2]
[327586349,1716245485111,-527.97032286,0.00038904,6]
[327586350,1716245485121,-500.0,0.00038904,6]
[327586351,1716245485132,-500.0,0.00038904,6]
[327586352,1716245485142,-3503.43,0.00038904,6]
[327586353,1716245485153,-1303.91,0.00038904,6]
[327586354,1716245485164,-500.0,0.00038904,6]
[327586355,1716245485174,-500.0,0.00038904,2]
[327586356,1716245485184,-1335.44,0.00038904,6]
[327586357,1716245485195,-882.81,0.00038904,6]
[327586358,1716245485205,-597.4,0.00038904,6]
[327586359,1716245485215,-12418.64,0.00038904,6]
[327586360,1716245485225,-1919.82,0.00038904,6]
[327586361,1716245485235,-500.0,0.00038904,6]
[327586362,1716245485245,-2545.17,0.00038904,6]
[327586363,1716245485256,-500.0,0.00038904,6]
[327586364,1716245485267,-500.0,0.00038904,6]
[327586365,1716245485278,-500.0,0.00038904,6]
[327586366,1716245485287,-500.0,0.00038904,6]
[327586367,1716245485297,-3116.86,0.00038904,6]
[327586368,1716245485307,-705.41,0.00038904,6]
[327586369,1716245485317,-1186.94,0.00038904,6]
[327586370,1716245485327,-1773.68,0.00038904,6]
[327586371,1716245485337,-500.0,0.00038904,6]
[327586372,1716245485347,-500.0,0.00038904,6]
[327586373,1716245485356,-4158.59,0.00038904,6]
[327586374,1716245485367,-500.0,0.00038904,6]
[327586375,1716245485377,-601.97,0.00038904,6]
[327586376,1716245485387,-536.0,0.00038904,6]
[327586377,1716245485397,-500.0,0.00038904,6]
[327586378,1716245485406,-4818.5,0.00038904,6]
[327586379,1716245485417,-2177.47,0.00038904,6]
[327586380,1716245485426,-3916.13,0.00038904,6]
[327586381,1716245485436,-500.0,0.00038904,6]
[327586382,1716245485447,-586.96,0.00038904,6]
[327586383,1716245485456,-1879.68,0.00038904,6]
[327586384,1716245485466,-500.0,0.00038904,6]
[327586385,1716245485476,-452.0,0.00038904,2]
[327586386,1716245485486,-501.81,0.00038904,6]
[327586387,1716245485496,-500.0,0.00038904,6]
[327586388,1716245485507,-500.0,0.00038904,6]
[327586389,1716245485518,-8194.37,0.00038904,6]
[327586390,1716245485527,-500.0,0.00038904,6]
[327586391,1716245485536,-1181.54,0.00038904,6]
[327586392,1716245485547,-520.8,0.00038904,6]
[327586393,1716245485557,-500.0,0.00038904,6]
[327586394,1716245485567,-500.0,0.00038904,6]
[327586395,1716245485577,-500.0,0.00038904,6]
[327586396,1716245485588,-500.0,0.00038904,6]
[327586397,1716245485597,-500.0,0.00038904,6]
[327586398,1716245485608,-500.0,0.00038904,6]
[327586399,1716245485859,-1500.0,0.00038944,2]
[327586400,1716245485870,-150.0,0.00038956,2]
[327586401,1716245485881,-150.0,0.00039007,2]
[327586402,1716245485892,-150.0,0.00039022,2]
[327586403,1716245485902,-180.85846526,0.00039078,12]
[327586404,1716245485912,-157.65454739,0.00039084,3]
[327586405,1716245485923,-1034.5075879,0.00039097,2]
[327586406,1716245485932,-150.0,0.00039099,2]
[327586407,1716245485942,-11577.80047999,0.000391,30]
[327586408,1716245485952,-591713.28685693,0.000391,30]
[327586409,1716245485963,-493.36,0.000391,3]
[327586410,1716245485973,-493.36,0.000391,3]
[327586411,1716245485983,-493.36,0.000391,3]
[327586412,1716245485992,-493.36,0.000391,3]
[327586413,1716245486002,-493.36,0.000391,3]
[327586414,1716245486012,-493.36,0.000391,3]
[327586415,1716245486022,-493.36,0.000391,3]
[327586416,1716245486031,-493.36,0.000391,3]
[327586417,1716245486042,-493.36,0.000391,3]
[327586418,1716245486053,-493.36,0.000391,3]
[327586419,1716245486062,-493.36,0.000391,3]
[327586420,1716245486072,-493.36,0.000391,3]
[327586421,1716245486081,-493.36,0.000391,3]
[327586422,1716245486091,-493.36,0.000391,3]
[327586423,1716245486101,-493.36,0.000391,3]
[327586424,1716245486112,-493.36,0.000391,3]
[327586425,1716245486121,-493.36,0.000391,3]
[327586426,1716245486133,-493.36,0.000391,3]
[327586427,1716245486144,-493.36,0.000391,3]
[327586428,1716245486154,-493.36,0.000391,3]
[327586429,1716245486164,-150.0,0.00039116,2]
[327586430,1716245486174,-150.0,0.00039155,2]
[327586431,1716245486184,-200.0,0.00039162,30]
[327586432,1716245486194,-200.0,0.00039162,50]
[327586433,1716245486204,-150.0,0.00039172,2]
[327586434,1716245486214,-1034.5075879,0.00039175,2]
[327586435,1716245486223,-150.0,0.00039177,30]
[327586436,1716245486232,-150.0,0.00039177,2]
[327586437,1716245486243,-213.96999947,0.00039178,5]
[327586438,1716245486252,-500.0,0.00039178,6]
[327586439,1716245486263,-500.0,0.00039178,6]
[327586440,1716245486272,-500.0,0.00039178,6]
[327586441,1716245486283,-500.0,0.00039178,6]
[327586442,1716245486292,-500.0,0.00039178,6]
[327586443,1716245486303,-500.0,0.00039178,6]
[327586444,1716245486313,-200.0,0.00039178,6]
[327586445,1716245486323,-500.0,0.00039178,6]
[327586446,1716245486332,-500.0,0.00039178,6]
[327586447,1716245486343,-500.0,0.00039178,6]
[327586448,1716245486352,-500.0,0.00039178,6]
[327586449,1716245486361,-1186.39,0.00039178,6]
[327586450,1716245486371,-569.05709862,0.00039178,6]
[327586451,1716245486380,-500.0,0.00039178,6]
[327586452,1716245486389,-929.22,0.00039178,6]
[327586453,1716245486399,-500.0,0.00039178,6]
[327586454,1716245486408,-604.11,0.00039178,6]
[327586455,1716245486417,-500.0,0.00039178,6]
[327586456,1716245486427,-506.38,0.00039178,6]
[327586457,1716245486436,-938.05,0.00039178,6]
[327586458,1716245486446,-207.35473622,0.00039178,6]
[327586459,1716245486457,-500.0,0.00039178,6]
[327586460,1716245486466,-500.0,0.00039178,6]
[327586461,1716245486477,-1500.0,0.00039178,6]
[327586462,1716245486487,-666.6,0.00039178,6]
[327586463,1716245486496,-500.0,0.00039178,6]
[327586464,1716245486506,-500.0,0.00039178,6]
[327586465,1716245486517,-423.36699252,0.00039178,6]
[327586466,1716245486526,-503.78,0.00039178,6]
[327586467,1716245486536,-680.03,0.00039178,6]
[327586468,1716245486547,-500.0,0.00039178,6]
[327586469,1716245486557,-551.14,0.00039178,6]
[327586470,1716245486567,-500.0,0.00039178,6]
[327586471,1716245486576,-699.16,0.00039178,6]
[327586472,1716245486586,-500.0,0.00039178,6]
[327586473,1716245486595,-623.06,0.00039178,6]
[327586474,1716245486605,-557.32371639,0.00039178,6]
[327586475,1716245486614,-562.29,0.00039178,6]
[327586476,1716245486624,-500.0,0.00039178,6]
[327586477,1716245486633,-840.02,0.00039178,6]
[327586478,1716245486642,-2000.0,0.00039178,6]
[327586479,1716245486652,-500.0,0.00039178,6]
[327586480,1716245486661,-897.19,0.00039178,6]
[327586481,1716245486670,-666.5,0.00039178,6]
[327586482,1716245486680,-500.0,0.00039178,6]
[327586483,1716245486690,-500.0,0.00039178,6]
[327586484,1716245486699,-500.0,0.00039178,6]
[327586485,1716245486709,-187.77950358,0.00039178,6]
[327586486,1716245486719,-1206.99,0.00039178,6]
[327586487,1716245486729,-500.0,0.00039178,6]
[327586488,1716245486739,-500.0,0.00039178,6]
[327586489,1716245486749,-500.0,0.00039178,6]
[327586490,1716245486758,-500.0,0.00039178,6]
[327586491,1716245486769,-500.0,0.00039178,6]
[327586492,1716245486779,-500.0,0.00039178,6]
[327586493,1716245486788,-500.0,0.00039178,6]
[327586494,1716245486798,-304.50622953,0.00039178,6]
[327586495,1716245486808,-500.0,0.00039178,6]
[327586496,1716245486817,-500.0,0.00039178,6]
[327586497,1716245486828,-500.0,0.00039178,6]
[327586498,1716245486837,-500.0,0.00039178,6]
[327586499,1716245486847,-881.43,0.00039178,6]
[327586500,1716245486856,-478.34299731,0.00039178,6]
[327586501,1716245486866,-500.0,0.00039178,6]
[327586502,1716245486876,-500.0,0.00039178,6]
[327586503,1716245486889,-500.0,0.00039178,6]
[327586504,1716245486899,-500.0,0.00039178,6]
[327586505,1716245486909,-587.76,0.00039178,6]
[327586506,1716245486918,-546.14,0.00039178,6]
[327586507,1716245486929,-500.0,0.00039178,6]
[327586508,1716245486939,-500.0,0.00039178,6]
[327586509,1716245486948,-557.99461133,0.00039178,6]
[327586510,1716245486960,-1073.98,0.00039178,6]
[327586511,1716245486969,-500.0,0.00039178,6]
[327586512,1716245486979,-389.82,0.00039178,6]
[327586513,1716245486989,-500.0,0.00039178,6]
[327586514,1716245486999,-1257.33,0.00039178,6]
[327586515,1716245487009,-500.0,0.00039178,6]
[327586516,1716245487021,-500.0,0.00039178,6]
[327586517,1716245487030,-520.17,0.00039178,6]
[327586518,1716245487039,-500.0,0.00039178,6]